bitfinex-derivatives/quotes_ETHF0:USTF0_20260104
["timestamp","ask_amount","ask_price","bid_price","bid_amount"]
[1767485264422,0.00476781,3146.1,3145.3,0.00476781]
[1767485266032,0.00209883,3146.3,3145.3,6.15780769]
[1767485266524,0.00209883,3146.3,3145.3,0.00476781]
[1767485267115,0.00476781,3146.1,3145.3,0.00476781]
[1767485268325,0.00476781,3146.1,3145.3,6.00476781]
[1767485268527,0.00209883,3146.3,3145.3,6.15780769]
[1767485269212,0.00209883,3146.3,3145.3,0.00476781]
[1767485269418,6.00209883,3146.3,3145.3,0.00476781]
[1767485269727,0.00476781,3146.1,3145.3,0.00476781]
[1767485270422,0.00209883,3146.3,3145.4,0.15303988]
[1767485270719,0.15888,3148.4,3145.5,6.15303988]
[1767485270923,0.15350888,3148.2,3145.2,0.15904]
[1767485271226,0.15350888,3147.6,3144.9,0.15303988]
[1767485271415,3.179,3147.5,3145.4,0.15303988]
[1767485271612,0.0047468,3146.8,3146.1,0.00476781]
[1767485275819,0.00274192,3147.5,3146.1,0.00476781]
[1767485276826,0.00274192,3147.5,3146.1,0.15780769]
[1767485277029,0.00274192,3147.5,3146.2,0.15303988]
[1767485277335,0.15887,3148.6,3146.2,0.15303988]
[1767485277525,7.72087,3148.6,3146.2,0.15303988]
[1767485277928,7.87437888,3148.6,3146.2,0.15303988]
[1767485278120,7.87437888,3148.6,3146.4,0.15303988]
[1767485278319,3.33636264,3148.6,3146.4,0.15303988]
[1767485278530,0.15350888,3148.5,3146.4,0.15303988]
[1767485278729,0.31237888,3148.5,3146.1,0.00476781]
[1767485279024,0.15350888,3148.4,3146.1,0.00476781]
[1767485279234,0.15350888,3148.2,3146.1,0.00476781]
[1767485279419,0.15350888,3148.1,3146.1,0.00476781]
[1767485279725,0.15350888,3148.0,3146.1,0.00476781]
[1767485279930,4.383,3147.9,3146.1,0.00476781]
[1767485280332,6.37785376,3148.6,3146.1,0.17415397]
[1767485280333,4.383,3148.4,3146.1,0.17415397]
[1767485280524,0.92031757,3148.3,3146.1,0.17415397]
[1767485280725,4.383,3148.4,3146.1,0.17415397]
[1767485280929,0.92031601,3148.3,3146.1,0.17415397]
[1767485281124,0.16127033,3148.6,3146.2,0.16938616]
[1767485281331,4.383,3148.5,3146.2,4.38184921]
[1767485281524,4.383,3148.5,3146.3,0.16938616]
[1767485281920,4.383,3148.5,3146.1,0.00476781]
[1767485281921,3.33641657,3149.2,3146.8,0.16938616]
[1767485282123,7.71941657,3149.2,3147.7,0.00476781]
[1767485282436,7.562,3149.2,3147.7,0.00476781]
[1767485282922,0.15741657,3149.8,3147.7,0.00476781]
[1767485283126,0.15741657,3149.8,3147.7,0.00846445]
[1767485283127,0.00247719,3149.2,3147.7,0.00846445]
[1767485283321,0.92401404,3149.1,3147.7,0.00846445]
[1767485283528,6.00247719,3149.2,3147.7,0.00846445]
[1767485283732,0.92403137,3149.1,3147.7,0.00846445]
[1767485283932,0.92403137,3149.0,3147.7,0.00846445]
[1767485284132,0.92403137,3148.9,3147.7,0.00846445]
[1767485284329,0.00247719,3149.2,3147.7,0.00846445]
[1767485286823,0.00247719,3149.2,3147.7,6.00846445]
[1767485287033,0.00247719,3149.2,3147.7,0.00846445]
[1767485287237,4.383,3149.5,3148.0,0.32828616]
[1767485287633,3.178,3150.9,3148.6,0.16938616]
[1767485287931,5.30666794,3150.8,3149.4,0.00476781]
[1767485288132,0.92366794,3150.7,3149.4,0.00476781]
[1767485288432,4.38497499,3150.7,3149.4,0.00476781]
[1767485288828,0.00297499,3150.7,3149.4,0.00476781]
[1767485289037,4.383,3150.6,3149.4,0.00476781]
[1767485289224,4.38597499,3150.7,3149.4,0.00476781]
[1767485291041,10.54339156,3150.7,3149.4,0.00476781]
[1767485291243,4.54339156,3150.7,3149.4,0.00476781]
[1767485291425,0.15741657,3150.6,3149.4,0.00476781]
[1767485291935,0.15741657,3150.4,3147.7,0.1730828]
[1767485292326,0.15741657,3150.4,3148.0,0.16938616]
[1767485292735,4.382,3150.3,3148.1,4.07724212]
[1767485292931,4.382,3150.3,3148.9,0.00476781]
[1767485293236,0.00476781,3149.5,3148.9,0.00476781]
[1767485293435,0.00476781,3149.5,3147.7,0.00369664]
[1767485294033,0.00476781,3149.5,3147.9,0.16938616]
[1767485294244,0.16039156,3150.7,3148.3,0.16938616]
[1767485294437,0.33441657,3150.6,3148.3,0.16938616]
[1767485294638,0.15741657,3150.5,3147.7,0.1730828]
[1767485294846,0.15741657,3150.3,3147.9,0.16938616]
[1767485295343,0.00476781,3149.4,3148.8,0.00476781]
[1767485297142,0.247,3150.1,3148.8,6.00476781]
[1767485297446,0.247,3150.1,3148.8,0.00476781]
[1767485298537,3.35241657,3150.0,3147.7,0.00369664]
[1767485298846,0.16218438,3149.8,3147.7,0.00369664]
[1767485299640,0.00476781,3149.8,3148.4,0.00476781]
[1767485300446,0.16218438,3149.8,3148.4,0.00476781]
[1767485300648,6.16218438,3149.8,3148.4,0.00476781]
[1767485302234,0.00476781,3149.8,3148.4,0.00476781]
[1767485302839,0.00476781,3149.8,3148.4,0.17415397]
[1767485303145,0.00476781,3149.8,3148.4,6.00476781]
[1767485303348,0.00476781,3149.8,3148.4,0.00476781]
[1767485304044,0.15741657,3149.7,3148.4,0.00476781]
[1767485304241,6.00476781,3149.8,3148.4,0.00476781]
[1767485304441,6.00476781,3149.8,3147.7,0.00369664]
[1767485304442,1.08304413,3149.7,3147.7,0.00369664]
[1767485304641,0.92423413,3149.6,3147.7,0.00369664]
[1767485304839,0.15883,3149.4,3147.7,0.00369664]
[1767485305048,0.00476781,3149.8,3147.7,0.1730828]
[1767485305649,0.00476781,3149.8,3148.4,0.17415397]
[1767485306453,6.00476781,3149.8,3148.4,0.00476781]
[1767485306953,0.92575068,3149.7,3148.4,0.00476781]
[1767485307151,0.92621851,3149.6,3148.4,0.00476781]
[1767485307454,0.00476781,3149.8,3148.4,6.17415397]
[1767485307646,0.00476781,3149.8,3148.5,0.16938616]
[1767485307841,0.00297499,3150.7,3148.9,0.16938616]
[1767485308140,1.824,3151.4,3149.4,0.32821616]
[1767485308340,1.824,3151.4,3149.5,0.16938616]
[1767485308551,3.177,3151.8,3149.6,0.16938616]
[1767485308951,0.00476781,3151.0,3150.4,0.00476781]
[1767485309255,3.177,3151.8,3150.4,0.17677865]
[1767485310046,3.177,3151.8,3150.4,0.00739249]
[1767485310244,9.18005711,3151.8,3150.4,0.00739249]
[1767485310445,0.92504389,3151.7,3150.4,0.00739249]
[1767485310646,9.18005711,3151.8,3150.4,0.00739249]
[1767485310947,0.13990919,3151.6,3149.2,0.17431014]
[1767485311142,0.15874,3151.1,3148.4,0.17431014]
[1767485311342,5.31006547,3151.0,3148.6,0.17431014]
[1767485311543,0.92506547,3150.9,3148.6,0.17431014]
[1767485311938,4.12006547,3150.9,3148.6,0.17735659]
[1767485312143,0.00476781,3150.1,3148.6,0.00304645]
[1767485312549,4.384,3150.0,3148.6,0.00304645]
[1767485312951,10.384,3150.0,3148.6,0.00304645]
[1767485313146,1.08694298,3149.9,3148.0,0.16706109]
[1767485313351,0.1588,3149.9,3148.0,0.16706109]
[1767485313651,0.15884,3149.2,3146.4,0.16706109]
[1767485313852,0.13038128,3149.6,3146.4,0.16706109]
[1767485313853,7.45810565,3149.1,3146.4,0.16706109]
[1767485314156,8.49026565,3149.0,3146.4,0.170589]
[1767485314347,0.00476781,3148.1,3147.4,0.00476781]
[1767485314542,7.562,3149.0,3147.4,0.00476781]
[1767485314741,0.92817559,3148.9,3147.4,0.00476781]
[1767485314951,0.92817559,3148.9,3146.4,0.00352791]
[1767485314952,0.92817559,3148.8,3146.4,0.170589]
[1767485315151,3.35386,3148.7,3146.4,0.170589]
[1767485315349,4.12317559,3148.6,3146.4,0.170589]
[1767485315548,4.12317559,3148.5,3146.4,0.170589]
[1767485315857,4.28205559,3148.4,3146.4,0.170589]
[1767485316042,4.12317559,3148.3,3147.1,0.00476781]
[1767485316247,0.00476781,3147.7,3147.1,0.00476781]
[1767485316449,0.00476781,3147.7,3146.4,0.170589]
[1767485316951,6.0,3147.6,3146.4,0.00352791]
[1767485317146,6.0,3147.6,3145.8,0.16706109]
[1767485317345,0.15892,3147.5,3145.2,0.16706109]
[1767485317555,0.15892,3147.5,3146.0,0.00476781]
[1767485317949,6.0,3147.4,3146.0,0.00476781]
[1767485318148,6.0,3147.4,3146.0,0.00815201]
[1767485319153,7.566,3147.3,3146.0,0.00815201]
[1767485319556,6.0,3147.2,3145.2,0.16706109]
[1767485319758,6.15894,3147.2,3145.2,0.16706109]
[1767485319961,7.567,3147.1,3145.2,0.16706109]
[1767485320258,0.15896,3146.9,3144.6,0.16706109]
[1767485320464,7.568,3146.8,3144.6,0.17061766]
[1767485320759,0.00476781,3146.1,3145.4,0.00476781]
[1767485321065,0.00476781,3146.1,3144.6,0.17061766]
[1767485321356,4.392,3146.0,3144.6,0.17061766]
[1767485321559,0.00476781,3146.1,3144.8,0.16706109]
[1767485322162,3.38576781,3146.1,3145.1,0.00317851]
[1767485322949,0.00476781,3146.1,3145.1,0.00317851]
[1767485323964,0.00476781,3146.1,3145.1,6.1702396]
[1767485324158,0.00373373,3146.8,3145.2,0.16706109]
[1767485324360,0.00373373,3146.8,3145.2,6.16706109]
[1767485324674,0.00373373,3146.8,3145.4,0.16706109]
[1767485324964,0.00373373,3146.8,3145.2,6.0]
[1767485324965,0.00373373,3146.8,3145.6,0.16706109]
[1767485325358,0.00476781,3146.5,3145.6,0.16706109]
[1767485326162,0.00476781,3146.5,3145.1,0.00317851]
[1767485327261,0.00476781,3146.5,3145.1,0.1702396]
[1767485327970,6.0,3146.4,3145.1,0.00317851]
[1767485328168,4.165,3146.3,3144.6,0.00355657]
[1767485328369,5.282,3146.2,3144.6,0.00355657]
[1767485328669,4.165,3146.3,3144.6,0.00355657]
[1767485328971,13.36,3146.3,3144.6,0.00355657]
[1767485329369,0.15899,3146.2,3144.6,0.00355657]
[1767485329672,0.15899,3146.1,3144.6,0.00355657]
[1767485330274,3.195,3145.9,3143.8,0.16706109]
[1767485330577,3.354,3145.9,3143.8,0.16706109]
[1767485330774,0.15901,3145.8,3143.8,0.16706109]
[1767485331276,0.15901,3145.8,3143.8,0.16986173]
[1767485332671,6.36876781,3146.5,3144.0,0.16706109]
[1767485332876,4.401,3146.2,3144.0,0.16706109]
[1767485333167,0.00476781,3146.5,3144.2,0.16706109]
[1767485333469,0.00476781,3146.5,3144.4,0.16706109]
[1767485334172,0.00476781,3146.5,3144.6,0.16706109]
[1767485334570,0.00476781,3146.5,3144.8,0.16706109]
[1767485334964,0.00476781,3146.5,3145.0,0.16706109]
[1767485335165,0.00373373,3146.8,3145.0,0.16706109]
[1767485335462,0.00373373,3146.8,3145.2,0.16706109]
[1767485335668,0.76,3147.9,3145.5,0.16706109]
[1767485335863,0.15889,3148.2,3145.5,0.16706109]
[1767485335864,3.34289,3148.2,3145.5,0.16706109]
[1767485336171,0.15889,3148.2,3145.8,0.16706109]
[1767485336366,0.15885,3149.1,3146.6,0.16706109]
[1767485336571,3.18,3148.9,3146.6,0.16706109]
[1767485336769,3.34197448,3148.9,3146.6,0.17022066]
[1767485337080,3.184,3148.8,3146.6,0.17022066]
[1767485337370,0.00476781,3148.0,3146.6,0.17022066]
[1767485337580,0.00311448,3148.9,3146.8,0.16706109]
[1767485338780,0.00311448,3148.9,3147.0,0.16706109]
[1767485339770,0.00476781,3148.3,3147.0,0.16706109]
[1767485340377,0.00311448,3148.9,3147.0,0.16706109]
[1767485340773,0.00311448,3148.9,3147.4,0.17913136]
[1767485340964,3.179,3149.8,3147.8,0.17913136]
[1767485341168,4.399,3150.7,3147.8,0.17913136]
[1767485341374,4.399,3150.7,3147.1,9.124]
[1767485341375,0.92160696,3150.6,3148.5,0.18389917]
[1767485341575,0.15872,3151.6,3148.5,0.18389917]
[1767485341778,8.49953134,3151.5,3148.7,0.17913136]
[1767485341974,0.92153134,3151.4,3148.7,0.17913136]
[1767485342273,7.5806973,3151.5,3148.9,0.17913136]
[1767485342472,0.9210348,3151.4,3148.9,0.18223261]
[1767485342668,0.00317852,3150.5,3148.9,0.18223261]
[1767485343064,0.00317852,3150.5,3148.9,0.00310125]
[1767485343376,4.4,3150.4,3148.9,0.00310125]
[1767485343972,4.40317852,3150.5,3148.9,0.00310125]
[1767485344366,10.40317852,3150.5,3148.9,0.00310125]
[1767485344968,0.16970206,3150.2,3148.5,0.00476781]
[1767485345170,0.16970206,3150.0,3147.5,0.17913136]
[1767485345375,7.579,3149.9,3147.5,0.17913136]
[1767485345572,1.09227282,3149.8,3147.5,0.17913136]
[1767485345779,0.32962228,3149.6,3147.5,0.17913136]
[1767485345973,0.17080228,3149.4,3147.5,0.00280637]
[1767485346178,0.00476781,3148.8,3147.5,0.00280637]
[1767485346476,4.40908125,3148.8,3147.5,0.00280637]
[1767485347067,0.00808125,3148.8,3147.5,0.00280637]
[1767485347273,4.40808125,3148.8,3147.8,0.00476781]
[1767485347678,0.00808125,3148.8,3147.8,0.00476781]
[1767485347872,0.00808125,3148.8,3147.8,0.18389917]
[1767485348067,0.00808125,3148.8,3147.8,0.00476781]
[1767485350378,6.0,3148.7,3147.8,0.00476781]
[1767485350575,0.00808125,3148.8,3147.8,0.00476781]
[1767485350778,0.1682694,3150.2,3148.0,0.17913136]
[1767485350779,0.15879,3150.2,3148.0,0.17913136]
[1767485350980,0.1588,3149.9,3147.8,0.00476781]
[1767485351373,0.1588,3149.9,3147.8,0.18389917]
[1767485351775,0.00476781,3149.2,3147.8,0.18389917]
[1767485352473,0.00476781,3149.2,3147.8,0.00476781]
[1767485353189,3.178,3149.1,3147.8,0.00476781]
[1767485353482,4.399,3149.0,3147.8,0.00476781]
[1767485354573,4.55785,3149.0,3147.8,0.00476781]
[1767485355482,6.0,3148.9,3147.5,0.00280637]
[1767485355781,0.00476781,3149.2,3147.6,4.34343607]
[1767485355982,0.00476781,3149.2,3147.7,0.17913136]
[1767485356177,0.00476781,3149.2,3147.7,6.17913136]
[1767485356372,0.00476781,3149.2,3147.7,0.17213136]
[1767485356575,0.00476781,3149.2,3148.1,0.00476781]
[1767485357581,0.0027199,3149.9,3148.1,6.00476781]
[1767485357783,0.0027199,3149.9,3148.1,0.00476781]
[1767485358679,0.1615199,3149.9,3148.1,0.00476781]
[1767485358879,3.184,3149.8,3148.1,0.00476781]
[1767485359479,0.1615199,3149.9,3148.1,0.00476781]
[1767485360283,0.15881,3149.8,3148.1,0.00476781]
[1767485360585,0.15883,3149.4,3148.1,0.00476781]
[1767485360982,4.399,3149.3,3148.1,0.00476781]
[1767485361682,12.361,3149.2,3148.1,0.00476781]
[1767485361882,0.15885,3149.0,3147.5,0.00280637]
[1767485362088,0.16361781,3149.0,3147.5,0.00280637]
[1767485362288,0.92720712,3148.9,3147.5,0.00280637]
[1767485362491,0.15886,3148.9,3147.5,0.00280637]
[1767485362689,0.92722836,3148.8,3147.5,0.18193773]
[1767485362891,4.56182,3149.6,3147.6,0.17913136]
[1767485363086,0.92711744,3149.5,3147.6,0.17913136]
[1767485363386,4.403,3149.6,3147.6,0.17913136]
[1767485363690,0.92836942,3149.5,3147.6,0.17913136]
[1767485363882,4.28556016,3149.4,3147.5,0.00280637]
[1767485364188,4.11238119,3149.3,3147.5,0.00280637]
[1767485364389,0.15885,3149.0,3147.5,0.00280637]
[1767485364586,0.92838119,3148.9,3147.5,0.00280637]
[1767485365092,0.00476781,3148.5,3147.5,0.00280637]
[1767485365294,4.40876781,3148.5,3146.3,0.17913136]
[1767485365480,4.10732914,3148.4,3146.3,0.17913136]
[1767485365791,0.93032914,3148.3,3146.3,0.17913136]
[1767485366185,0.93032914,3148.3,3147.0,0.00476781]
[1767485366579,10.11432914,3148.3,3147.0,0.00841879]
[1767485366794,10.11432914,3148.3,3146.3,0.17913136]
[1767485366795,3.184,3148.1,3146.3,0.17913136]
[1767485366995,4.11432914,3148.0,3145.7,0.17913136]
[1767485367196,0.93032914,3147.9,3145.7,0.17913136]
[1767485367794,0.00476781,3147.1,3146.5,0.00476781]
[1767485367980,0.00790031,3147.1,3145.7,0.18254066]
[1767485368482,4.406,3147.0,3145.7,0.18254066]
[1767485369196,0.00790031,3147.1,3146.0,0.00476781]
[1767485369391,4.41390031,3147.1,3146.0,0.00476781]
[1767485369588,0.00790031,3147.1,3146.0,6.18389917]
[1767485369791,0.00790031,3147.1,3146.1,0.17913136]
[1767485369983,1.129,3148.0,3146.1,0.17913136]
[1767485370792,0.15888,3148.4,3146.2,0.17344176]
[1767485370989,1.418,3148.3,3146.3,0.17344176]
[1767485371298,0.00262895,3148.4,3146.4,4.38214551]
[1767485371489,0.00262895,3148.4,3146.5,0.17344176]
[1767485372088,0.00262895,3148.4,3146.7,0.1744519]
[1767485372498,0.00262895,3148.4,3146.9,0.1744519]
[1767485372688,3.178,3149.9,3146.9,0.1744519]
[1767485372994,2.04475302,3149.8,3147.1,0.1744519]
[1767485373292,0.00476781,3148.8,3148.1,0.00476781]
[1767485373489,3.34281,3149.7,3148.1,0.00476781]
[1767485373688,3.184,3149.5,3148.1,0.00762199]
[1767485373889,3.34555049,3149.7,3148.1,0.00762199]
[1767485374091,6.92908177,3149.6,3148.1,0.00762199]
[1767485374297,6.0,3149.6,3148.1,0.00762199]
[1767485374489,0.00476781,3149.2,3148.1,0.18207389]
[1767485375089,0.00476781,3149.2,3148.1,6.18207389]
[1767485375289,0.00476781,3149.2,3148.1,0.00762199]
[1767485375891,4.41076781,3149.2,3148.1,0.00762199]
[1767485376496,10.41076781,3149.2,3148.1,0.00762199]
[1767485376902,0.15884,3149.1,3146.9,0.1744519]
[1767485377089,3.184,3149.0,3146.9,0.1744519]
[1767485377294,0.92946548,3148.9,3146.9,0.1744519]
[1767485377804,3.184,3148.8,3146.9,0.1744519]
[1767485378004,3.184,3148.8,3146.9,0.17777877]
[1767485378208,3.184,3148.6,3146.9,0.17777877]
[1767485378506,3.184,3148.5,3146.9,0.17777877]
[1767485378903,0.16850236,3149.1,3146.9,0.17777877]
[1767485379208,3.34285,3148.9,3147.7,0.00476781]
[1767485379404,4.11357019,3148.8,3147.7,0.00476781]
[1767485379608,0.92957019,3148.7,3147.7,0.00476781]
[1767485379793,4.408,3148.6,3147.7,0.00476781]
[1767485380891,0.00476781,3149.2,3147.7,0.00476781]
[1767485381101,4.409,3149.1,3147.7,0.00476781]
[1767485381294,0.00476781,3149.2,3147.7,0.17921971]
[1767485381495,4.41376781,3149.2,3147.7,0.17921971]
[1767485381700,0.00476781,3149.2,3147.8,0.1744519]
[1767485382908,0.00476781,3149.2,3147.7,0.00476781]
[1767485383805,7.593,3149.1,3147.7,0.00476781]
[1767485384799,13.75592389,3149.1,3147.7,0.00476781]
[1767485384996,13.75592389,3149.1,3146.9,0.00332687]
[1767485384997,0.15886,3148.7,3146.9,0.00332687]
[1767485385610,0.15888,3148.4,3146.9,0.00332687]
[1767485385808,3.184,3148.2,3146.9,0.00332687]
[1767485386006,3.184,3148.0,3147.2,7.81e-06]
[1767485386316,6.362,3148.0,3145.9,0.1744519]
[1767485386515,6.5209,3148.0,3145.9,0.1744519]
[1767485386705,3.184,3147.8,3145.9,0.1744519]
[1767485386906,3.184,3147.6,3145.9,0.1744519]
[1767485387108,0.00476781,3147.1,3146.4,0.00476781]
[1767485387415,0.00401756,3147.1,3146.4,0.00762396]
[1767485388510,0.00878537,3147.1,3146.4,0.00762396]
[1767485388910,6.00878537,3147.1,3145.3,0.1744519]
[1767485389216,0.00878537,3147.1,3145.3,0.1744519]
[1767485390114,0.00878537,3147.1,3145.9,0.00476781]
[1767485390523,6.15895,3147.0,3145.3,0.00306597]
[1767485390816,0.15896,3146.8,3145.3,0.00306597]
[1767485391210,4.413,3146.7,3145.3,0.17751787]
[1767485391513,0.00878537,3147.1,3145.5,0.1744519]
[1767485391713,4.413,3147.0,3145.5,0.1744519]
[1767485394006,0.00878537,3147.1,3145.5,0.1744519]
[1767485394221,4.414,3147.0,3145.6,0.1744519]
[1767485397017,4.414,3147.0,3145.3,0.00306597]
[1767485397916,4.57295,3147.0,3145.3,0.00306597]
[1767485398523,0.15895,3146.9,3145.3,0.00306597]
[1767485399614,0.15896,3146.7,3145.3,0.00306597]
[1767485400018,0.15897,3146.6,3145.3,0.00306597]
[1767485400428,0.15898,3146.3,3144.5,0.18090181]
[1767485400729,0.15895,3147.0,3144.5,0.16990181]
[1767485400924,10.777,3146.9,3144.5,0.16990181]
[1767485401224,0.00878537,3147.1,3144.9,0.15905]
[1767485401425,0.00878537,3147.1,3144.9,0.16212434]
[1767485401620,0.00878537,3147.1,3145.3,0.15903]
[1767485401820,0.082,3147.7,3145.3,0.15903]
[1767485402025,0.082,3147.7,3145.4,4.12391644]
[1767485402528,0.082,3147.7,3145.4,4.28294644]
[1767485402725,0.08585134,3147.7,3146.3,0.18090181]
[1767485403322,0.08585134,3147.7,3146.2,0.00476781]
[1767485403520,4.414,3147.6,3146.2,0.18566962]
[1767485403722,4.414,3147.6,3146.2,0.00476781]
[1767485404124,0.00476781,3147.2,3146.2,0.00476781]
[1767485405630,0.00476781,3147.2,3146.2,0.18566962]
[1767485406018,0.00476781,3147.2,3146.2,0.00476781]
[1767485406930,9.18876781,3147.2,3145.6,0.18090181]
[1767485407131,9.18876781,3147.2,3145.0,0.18090181]
[1767485407431,3.18876781,3147.2,3145.0,0.18090181]
[1767485407630,3.18876781,3147.2,3144.2,3.898287]
[1767485407631,0.00476781,3147.2,3145.2,0.18090181]
[1767485408432,0.00476781,3147.2,3145.9,0.18566962]
[1767485409131,0.00476781,3147.2,3146.0,0.18090181]
[1767485409835,0.00476781,3147.2,3146.2,0.18090181]
[1767485410230,0.00476781,3147.2,3146.3,6.0]
[1767485410628,0.00476781,3147.2,3145.9,0.00476781]
[1767485411032,0.00476781,3147.2,3146.0,0.18090181]
[1767485411236,0.00385134,3147.7,3146.0,0.18090181]
[1767485411536,0.00385134,3147.7,3146.1,0.18090181]
[1767485411731,0.15887,3148.6,3146.2,0.18090181]
[1767485411929,1.127,3149.0,3146.3,0.18090181]
[1767485412132,1.127,3149.0,3146.3,0.33988181]
[1767485412332,0.00476781,3148.0,3146.5,0.18090181]
[1767485412527,0.00476781,3148.0,3147.3,0.18566962]
[1767485413433,0.15882,3149.6,3147.4,0.18090181]
[1767485413635,1.09163862,3149.5,3147.4,0.18090181]
[1767485413843,0.93281862,3149.4,3147.4,0.18090181]
[1767485414137,0.15884,3149.2,3147.4,0.18090181]
[1767485414339,0.00476781,3148.6,3147.4,0.18090181]
[1767485414532,0.00724386,3148.6,3147.4,0.18090181]
[1767485418137,0.00724386,3148.6,3147.5,0.18090181]
[1767485418336,1.674,3149.7,3147.5,0.18090181]
[1767485419441,1.67676564,3149.7,3147.5,0.18090181]
[1767485420045,0.00476781,3148.9,3147.5,0.18090181]
[1767485420443,0.00276564,3149.7,3147.7,0.18090181]
[1767485420841,0.00276564,3149.7,3148.0,0.18090181]
[1767485421347,0.00276564,3149.7,3148.2,0.18090181]
[1767485421541,0.00276564,3149.7,3148.4,0.18090181]
[1767485422433,0.00276564,3149.7,3147.4,0.18090181]
[1767485422745,0.00317852,3149.4,3147.4,4.24804774]
[1767485422944,0.00317852,3149.4,3147.5,0.18090181]
[1767485423441,0.00317852,3149.4,3147.7,0.18090181]
[1767485425035,3.184,3149.3,3147.7,0.18090181]
[1767485425543,0.00276564,3149.7,3147.8,4.15236756]
[1767485425743,0.00276564,3149.7,3147.9,0.33980181]
[1767485425943,7.588,3151.0,3148.1,0.18090181]
[1767485426153,7.588,3151.0,3148.5,0.33977181]
[1767485426460,10.772,3151.0,3148.7,0.18090181]
[1767485426749,10.772,3151.0,3149.4,0.00476781]
[1767485426951,7.59067094,3151.0,3149.4,0.18566962]
[1767485427545,0.00267094,3151.0,3149.6,0.18090181]
[1767485427848,0.15869,3152.2,3149.8,0.18090181]
[1767485428535,0.15869,3152.1,3149.8,0.18090181]
[1767485428741,0.1619891,3152.1,3149.8,0.18090181]
[1767485428937,0.1619891,3152.1,3149.9,4.11891199]
[1767485429146,0.1619891,3152.1,3150.0,0.18090181]
[1767485430148,0.0032991,3152.1,3150.0,0.18090181]
[1767485430540,0.17454541,3152.0,3149.6,0.00262888]
[1767485430947,0.17454541,3151.4,3149.6,0.00262888]
[1767485431164,0.15876,3150.8,3149.6,0.00262888]
[1767485431655,6.0,3150.7,3147.7,0.18026026]
[1767485431850,0.17383121,3150.8,3147.7,0.18026026]
[1767485432045,0.17383121,3150.8,3147.8,0.18026026]
[1767485432553,0.15878,3150.4,3148.0,0.18026026]
[1767485432854,0.15878,3150.4,3148.9,0.00476781]
[1767485433246,0.00476781,3150.0,3148.9,0.00476781]
[1767485433445,0.00476781,3150.0,3149.0,0.18026026]
[1767485433753,3.65374,3151.2,3149.1,0.18026026]
[1767485434851,0.15874,3151.2,3149.1,0.18026026]
[1767485435057,7.74274,3151.2,3149.1,0.18026026]
[1767485435243,0.15874,3151.2,3149.1,0.18026026]
[1767485435449,3.176,3151.5,3149.3,0.18026026]
[1767485436255,0.15873,3151.3,3149.3,0.18026026]
[1767485437250,0.15874,3151.1,3149.3,0.18026026]
[1767485437447,0.15876,3150.7,3148.9,0.00476781]
[1767485437760,3.184,3151.5,3149.1,0.18026026]
[1767485437956,7.085,3151.6,3149.1,0.18026026]
[1767485438255,0.1587,3152.0,3149.3,0.18026026]
[1767485438455,0.1587,3152.0,3149.4,0.18026026]
[1767485438661,0.191,3152.6,3149.5,0.18026026]
[1767485438848,0.17383121,3153.3,3150.6,0.18026026]
[1767485439053,0.05523814,3154.0,3151.1,0.18026026]
[1767485439260,0.1586,3153.9,3151.1,0.18026026]
[1767485439461,0.1586,3153.9,3152.2,0.00476017]
[1767485439849,0.15861,3153.8,3152.2,0.00476017]
[1767485440053,3.176,3153.7,3152.2,0.00807527]
[1767485440463,0.92171172,3153.6,3152.2,0.00807527]
[1767485440661,4.10571172,3153.5,3152.2,0.00807527]
[1767485440857,0.92175219,3153.4,3150.9,0.18026026]
[1767485441053,0.15864,3153.1,3150.9,0.18026026]
[1767485441260,3.184,3152.9,3150.9,0.18026026]
[1767485441454,0.17383121,3152.6,3150.3,0.18026026]
[1767485441652,3.184,3152.4,3150.3,0.18026026]
[1767485441853,0.00473469,3151.7,3151.0,0.00476017]
[1767485442071,0.00473469,3151.7,3150.3,0.00303506]
[1767485442457,0.15872,3151.5,3149.1,0.18026026]
[1767485442658,0.15873,3151.4,3149.1,0.18026026]
[1767485442865,4.25635168,3151.3,3149.1,0.18026026]
[1767485443167,0.92308623,3151.2,3149.9,0.00476017]
[1767485443366,4.407,3151.2,3149.9,0.00476017]
[1767485443557,6.92309275,3151.1,3149.9,0.00857839]
[1767485443757,0.92309275,3151.0,3149.9,0.00857839]
[1767485443952,4.41030913,3151.2,3149.9,0.00857839]
[1767485443953,0.00330913,3151.2,3149.9,0.18883865]
[1767485444157,0.00330913,3151.2,3150.0,4.28953111]
[1767485444363,0.00330913,3151.2,3150.1,0.18026026]
[1767485444560,2.26617638,3152.7,3150.1,0.18026026]
[1767485444865,4.56665,3153.1,3150.3,0.18026026]
[1767485445067,0.92304036,3153.0,3150.3,0.18026026]
[1767485445365,0.92304036,3152.9,3150.5,0.18026026]
[1767485445565,5.33104036,3152.8,3150.5,0.18026026]
[1767485445768,0.00476017,3152.0,3151.3,0.00476017]
[1767485448665,4.40984689,3152.8,3151.4,0.18026026]
[1767485448666,0.00284689,3152.8,3151.4,0.18026026]
[1767485449268,0.00284689,3152.8,3151.4,6.18026026]
[1767485449573,0.15862,3153.6,3151.6,0.18026026]
[1767485449771,0.92355031,3153.5,3151.6,0.18026026]
[1767485450070,0.92355031,3153.4,3151.6,0.18026026]
[1767485450270,0.92355031,3153.3,3151.6,0.18026026]
[1767485450571,0.92355031,3153.2,3151.3,0.00476017]
[1767485450758,0.92355031,3153.1,3151.3,0.00476017]
[1767485450956,0.92355031,3153.0,3151.3,0.00476017]
[1767485452957,0.92355031,3153.0,3151.3,0.18502043]
[1767485455670,0.00275645,3153.3,3151.5,0.18026026]
[1767485456074,0.00275645,3153.3,3151.7,0.18026026]
[1767485456665,0.00275645,3153.3,3151.3,0.00476017]
[1767485456666,0.00275645,3153.3,3151.8,4.37882034]
[1767485456865,0.00275645,3153.3,3151.8,0.18026026]
[1767485457170,0.00275645,3153.3,3152.0,0.18026026]
[1767485457773,0.15864,3153.1,3151.3,0.00476017]
[1767485457970,3.34264,3153.1,3151.3,0.00476017]
[1767485458169,9.34264,3153.1,3151.3,0.00476017]
[1767485458371,3.184,3152.9,3151.3,0.00476017]
[1767485458570,4.405,3152.8,3151.3,0.00476017]
[1767485458970,3.184,3152.9,3151.3,0.00476017]
[1767485458971,4.406,3152.7,3151.3,0.00476017]
[1767485460166,4.56466,3152.7,3151.3,0.00476017]
[1767485460372,3.184,3153.2,3151.3,0.18217507]
[1767485460568,7.591,3153.1,3151.3,0.18217507]
[1767485460766,0.00275645,3153.3,3151.3,6.18217507]
[1767485460969,0.00275645,3153.3,3151.5,0.1774149]
[1767485461375,0.00275645,3153.3,3151.7,0.1774149]
[1767485461684,0.16138645,3153.3,3151.3,0.18217507]